{"text_format":"1","workbook":"xlsx","n_sheets":2,"sheets":["Antrag","Tabelle1"],"not_rendered":{"charts":0,"images":0,"macros":1,"external_links":0,"defined_names":2,"comments":0,"pivot_tables":0},"unopened":[],"bounds":{"document_bytes":16777216,"sheet_cells":100000,"rows_first":2000,"rows_last":500,"rows_between":2000,"halvings":0,"cell_chars":16384,"cell_head_chars":4096},"cells_cut":0,"cells_raw":0,"read":"whole","date_system":"1900"}

{"sheet":"Antrag","index":0,"n_rows":571,"n_cols":11,"rows_kept":571,"cut":false,"hidden":false,"merged":[[9,4,9,8],[2,1,2,2],[3,1,3,2],[4,1,4,2],[5,1,5,2],[3,4,5,6],[3,7,5,7]]}
["Antrag Feriensprachkurse 2025"]
[]
["Antragsteller:",null,null,null,"Diese Tabelle wird automatisch befüllt"]
["Ansprechpartner/in:",null,null,null,"SUMME der Ausgaben",null,null,{"$f":"K24","v":0}]
["Telefon :"]
["E-Mail:"]
[]
[null,null,null,null,"Wir erklären hiermit, dass "]
[]
["Schulennummer bzw.korrekter Name der Schulen die SuS Angemeldet haben","Anzahl der angemeldeten SuS je Schule",null,null,"1. mit der Maßnahme noch nicht begonnen worden ist."]
[]
[null,null,null,null,"2. nur Kinder berücksichtigt werden, deren Sprachförderbedarf sowie die Vorlage der Einverständniserklärung durch die Eltern/Sorgeberechtigten von der Schule bestätigt wurde."]
[]
[null,null,null,null,"3. wir ausschließlich qualifizierte Kursleiter und Kursleiterinnen einstellen."]
[]
[null,null,null,null,"4. die Möglichkeit zum Vorsteuerabzug besteht:  (  )  ja     (  ) nein"]
[]
[]
[null,null,null,null,"Ort","Datum",null,"Name des Antragstellers"]
[]
[]
["Teilnehmergebühren und Materialkosten werden nicht erhoben, evtl. anfallende Fahrtkosten müssen von den Teilnehmerinnen und Teilnehmern als Eigenbeitrag übernommen werden."]
[]
["*Felder werden automatisch befüllt",null,null,null,null,null,null,null,null,null,{"$f":"SUBTOTAL(109,K26:K566)","v":0}]
["Kurs-Nr.","Kursart\n","vhs/kvhs\nName","Kursort (Schule XY oder k/vhs XY in XY)","Beginn der Maßnahme (Datum)","Ende der Maßnahme (Datum)","Anzahl SuS","davon Anzahl von SuS mit Alphabetisierungs-bedarf"," Anzahl von Wochen-\ntagen","Kursdauer (Wochen-\nstunden insgesamt)","Zuwendung pro Kurs"]
["2025-0(Monat)-00(Aktenzeichenvhs/kvhs)-(Kursnummer, fortlaufend)","SekI",null,null,null,null,null,null,null,null,{"$f":"(J26*25)+(IF(J26>0,350,0))","v":0}]
["2025-0(Monat)-00(Aktenzeichenvhs/kvhs)-00(Kursnummer, fortlaufend)",null,null,null,null,null,null,null,null,null,{"$f":"(J27*25)+(IF(J27>0,350,0))","v":0}]
["2025-0(Monat)-00(Aktenzeichenvhs/kvhs)-00(Kursnummer, fortlaufend)",null,null,null,null,null,null,null,null,null,0]
["2025-0(Monat)-00(Aktenzeichenvhs/kvhs)-00(Kursnummer, fortlaufend)",null,null,null,null,null,null,null,null,null,0]
["2025-0(Monat)-00(Aktenzeichenvhs/kvhs)-00(Kursnummer, fortlaufend)",null,null,null,null,null,null,null,null,null,0]
["2025-0(Monat)-00(Aktenzeichenvhs/kvhs)-00(Kursnummer, fortlaufend)",null,null,null,null,null,null,null,null,null,0]
["2025-0(Monat)-00(Aktenzeichenvhs/kvhs)-00(Kursnummer, fortlaufend)",null,null,null,null,null,null,null,null,null,0]
["2025-0(Monat)-00(Aktenzeichenvhs/kvhs)-00(Kursnummer, fortlaufend)",null,null,null,null,null,null,null,null,null,0]
["2025-0(Monat)-00(Aktenzeichenvhs/kvhs)-00(Kursnummer, fortlaufend)",null,null,null,null,null,null,null,null,null,0]
["2025-0(Monat)-00(Aktenzeichenvhs/kvhs)-00(Kursnummer, fortlaufend)",null,null,null,null,null,null,null,null,null,0]
["2025-0(Monat)-00(Aktenzeichenvhs/kvhs)-00(Kursnummer, fortlaufend)",null,null,null,null,null,null,null,null,null,0]
["2025-0(Monat)-00(Aktenzeichenvhs/kvhs)-00(Kursnummer, fortlaufend)",null,null,null,null,null,null,null,null,null,0]
["2025-0(Monat)-00(Aktenzeichenvhs/kvhs)-00(Kursnummer, fortlaufend)",null,null,null,null,null,null,null,null,null,0]
["2025-0(Monat)-00(Aktenzeichenvhs/kvhs)-00(Kursnummer, fortlaufend)",null,null,null,null,null,null,null,null,null,0]
["2025-0(Monat)-00(Aktenzeichenvhs/kvhs)-00(Kursnummer, fortlaufend)",null,null,null,null,null,null,null,null,null,0]
["2025-0(Monat)-00(Aktenzeichenvhs/kvhs)-00(Kursnummer, fortlaufend)",null,null,null,null,null,null,null,null,null,0]
["2025-0(Monat)-00(Aktenzeichenvhs/kvhs)-00(Kursnummer, fortlaufend)",null,null,null,null,null,null,null,null,null,0]
["2025-0(Monat)-00(Aktenzeichenvhs/kvhs)-00(Kursnummer, fortlaufend)",null,null,null,null,null,null,null,null,null,0]
["2025-0(Monat)-00(Aktenzeichenvhs/kvhs)-00(Kursnummer, fortlaufend)",null,null,null,null,null,null,null,null,null,0]
["2025-0(Monat)-00(Aktenzeichenvhs/kvhs)-00(Kursnummer, fortlaufend)",null,null,null,null,null,null,null,null,null,0]
["2025-0(Monat)-00(Aktenzeichenvhs/kvhs)-00(Kursnummer, fortlaufend)",null,null,null,null,null,null,null,null,null,0]
["2025-0(Monat)-00(Aktenzeichenvhs/kvhs)-00(Kursnummer, fortlaufend)",null,null,null,null,null,null,null,null,null,0]
["2025-0(Monat)-00(Aktenzeichenvhs/kvhs)-00(Kursnummer, fortlaufend)",null,null,null,null,null,null,null,null,null,0]
["2025-0(Monat)-00(Aktenzeichenvhs/kvhs)-00(Kursnummer, fortlaufend)",null,null,null,null,null,null,null,null,null,0]
["2025-0(Monat)-00(Aktenzeichenvhs/kvhs)-00(Kursnummer, fortlaufend)",null,null,null,null,null,null,null,null,null,0]
["2025-0(Monat)-00(Aktenzeichenvhs/kvhs)-00(Kursnummer, fortlaufend)",null,null,null,null,null,null,null,null,null,0]
["2025-0(Monat)-00(Aktenzeichenvhs/kvhs)-00(Kursnummer, fortlaufend)",null,null,null,null,null,null,null,null,null,0]
["2025-0(Monat)-00(Aktenzeichenvhs/kvhs)-00(Kursnummer, fortlaufend)",null,null,null,null,null,null,null,null,null,0]
["2025-0(Monat)-00(Aktenzeichenvhs/kvhs)-00(Kursnummer, fortlaufend)",null,null,null,null,null,null,null,null,null,0]
["2025-0(Monat)-00(Aktenzeichenvhs/kvhs)-00(Kursnummer, fortlaufend)",null,null,null,null,null,null,null,null,null,0]
["2025-0(Monat)-00(Aktenzeichenvhs/kvhs)-00(Kursnummer, fortlaufend)",null,null,null,null,null,null,null,null,null,0]
["2025-0(Monat)-00(Aktenzeichenvhs/kvhs)-00(Kursnummer, fortlaufend)",null,null,null,null,null,null,null,null,null,0]
["2025-0(Monat)-00(Aktenzeichenvhs/kvhs)-00(Kursnummer, fortlaufend)",null,null,null,null,null,null,null,null,null,0]
["2025-0(Monat)-00(Aktenzeichenvhs/kvhs)-00(Kursnummer, fortlaufend)",null,null,null,null,null,null,null,null,null,0]
["2025-0(Monat)-00(Aktenzeichenvhs/kvhs)-00(Kursnummer, fortlaufend)",null,null,null,null,null,null,null,null,null,0]
["2025-0(Monat)-00(Aktenzeichenvhs/kvhs)-00(Kursnummer, fortlaufend)",null,null,null,null,null,null,null,null,null,0]
["2025-0(Monat)-00(Aktenzeichenvhs/kvhs)-00(Kursnummer, fortlaufend)",null,null,null,null,null,null,null,null,null,0]
["2025-0(Monat)-00(Aktenzeichenvhs/kvhs)-00(Kursnummer, fortlaufend)",null,null,null,null,null,null,null,null,null,0]
["2025-0(Monat)-00(Aktenzeichenvhs/kvhs)-00(Kursnummer, fortlaufend)",null,null,null,null,null,null,null,null,null,0]
["2025-0(Monat)-00(Aktenzeichenvhs/kvhs)-00(Kursnummer, fortlaufend)",null,null,null,null,null,null,null,null,null,0]
["2025-0(Monat)-00(Aktenzeichenvhs/kvhs)-00(Kursnummer, fortlaufend)",null,null,null,null,null,null,null,null,null,0]
["2025-0(Monat)-00(Aktenzeichenvhs/kvhs)-00(Kursnummer, fortlaufend)",null,null,null,null,null,null,null,null,null,0]
["2025-0(Monat)-00(Aktenzeichenvhs/kvhs)-00(Kursnummer, fortlaufend)",null,null,null,null,null,null,null,null,null,0]
["2025-0(Monat)-00(Aktenzeichenvhs/kvhs)-00(Kursnummer, fortlaufend)",null,null,null,null,null,null,null,null,null,0]
["2025-0(Monat)-00(Aktenzeichenvhs/kvhs)-00(Kursnummer, fortlaufend)",null,null,null,null,null,null,null,null,null,0]
["2025-0(Monat)-00(Aktenzeichenvhs/kvhs)-00(Kursnummer, fortlaufend)",null,null,null,null,null,null,null,null,null,0]
["2025-0(Monat)-00(Aktenzeichenvhs/kvhs)-00(Kursnummer, fortlaufend)",null,null,null,null,null,null,null,null,null,0]
["2025-0(Monat)-00(Aktenzeichenvhs/kvhs)-00(Kursnummer, fortlaufend)",null,null,null,null,null,null,null,null,null,0]
["2025-0(Monat)-00(Aktenzeichenvhs/kvhs)-00(Kursnummer, fortlaufend)",null,null,null,null,null,null,null,null,null,0]
["2025-0(Monat)-00(Aktenzeichenvhs/kvhs)-00(Kursnummer, fortlaufend)",null,null,null,null,null,null,null,null,null,0]
["2025-0(Monat)-00(Aktenzeichenvhs/kvhs)-00(Kursnummer, fortlaufend)",null,null,null,null,null,null,null,null,null,0]
["2025-0(Monat)-00(Aktenzeichenvhs/kvhs)-00(Kursnummer, fortlaufend)",null,null,null,null,null,null,null,null,null,0]
["2025-0(Monat)-00(Aktenzeichenvhs/kvhs)-00(Kursnummer, fortlaufend)",null,null,null,null,null,null,null,null,null,0]
["2025-0(Monat)-00(Aktenzeichenvhs/kvhs)-00(Kursnummer, fortlaufend)",null,null,null,null,null,null,null,null,null,0]
["2025-0(Monat)-00(Aktenzeichenvhs/kvhs)-00(Kursnummer, fortlaufend)",null,null,null,null,null,null,null,null,null,0]
["2025-0(Monat)-00(Aktenzeichenvhs/kvhs)-00(Kursnummer, fortlaufend)",null,null,null,null,null,null,null,null,null,0]
["2025-0(Monat)-00(Aktenzeichenvhs/kvhs)-00(Kursnummer, fortlaufend)",null,null,null,null,null,null,null,null,null,0]
["2025-0(Monat)-00(Aktenzeichenvhs/kvhs)-00(Kursnummer, fortlaufend)",null,null,null,null,null,null,null,null,null,0]
["2025-0(Monat)-00(Aktenzeichenvhs/kvhs)-00(Kursnummer, fortlaufend)",null,null,null,null,null,null,null,null,null,0]
["2025-0(Monat)-00(Aktenzeichenvhs/kvhs)-00(Kursnummer, fortlaufend)",null,null,null,null,null,null,null,null,null,0]
["2025-0(Monat)-00(Aktenzeichenvhs/kvhs)-00(Kursnummer, fortlaufend)",null,null,null,null,null,null,null,null,null,0]
["2025-0(Monat)-00(Aktenzeichenvhs/kvhs)-00(Kursnummer, fortlaufend)",null,null,null,null,null,null,null,null,null,0]
["2025-0(Monat)-00(Aktenzeichenvhs/kvhs)-00(Kursnummer, fortlaufend)",null,null,null,null,null,null,null,null,null,0]
["2025-0(Monat)-00(Aktenzeichenvhs/kvhs)-00(Kursnummer, fortlaufend)",null,null,null,null,null,null,null,null,null,0]
["2025-0(Monat)-00(Aktenzeichenvhs/kvhs)-00(Kursnummer, fortlaufend)",null,null,null,null,null,null,null,null,null,0]
["2025-0(Monat)-00(Aktenzeichenvhs/kvhs)-00(Kursnummer, fortlaufend)",null,null,null,null,null,null,null,null,null,{"$f":"(J91*25)+(IF(J91>0,350,0))","v":0}]
["2025-0(Monat)-00(Aktenzeichenvhs/kvhs)-00(Kursnummer, fortlaufend)",null,null,null,null,null,null,null,null,null,0]
["2025-0(Monat)-00(Aktenzeichenvhs/kvhs)-00(Kursnummer, fortlaufend)",null,null,null,null,null,null,null,null,null,0]
["2025-0(Monat)-00(Aktenzeichenvhs/kvhs)-00(Kursnummer, fortlaufend)",null,null,null,null,null,null,null,null,null,0]
["2025-0(Monat)-00(Aktenzeichenvhs/kvhs)-00(Kursnummer, fortlaufend)",null,null,null,null,null,null,null,null,null,0]
["2025-0(Monat)-00(Aktenzeichenvhs/kvhs)-00(Kursnummer, fortlaufend)",null,null,null,null,null,null,null,null,null,0]
["2025-0(Monat)-00(Aktenzeichenvhs/kvhs)-00(Kursnummer, fortlaufend)",null,null,null,null,null,null,null,null,null,0]
["2025-0(Monat)-00(Aktenzeichenvhs/kvhs)-00(Kursnummer, fortlaufend)",null,null,null,null,null,null,null,null,null,0]
["2025-0(Monat)-00(Aktenzeichenvhs/kvhs)-00(Kursnummer, fortlaufend)",null,null,null,null,null,null,null,null,null,0]
["2025-0(Monat)-00(Aktenzeichenvhs/kvhs)-00(Kursnummer, fortlaufend)",null,null,null,null,null,null,null,null,null,0]
["2025-0(Monat)-00(Aktenzeichenvhs/kvhs)-00(Kursnummer, fortlaufend)",null,null,null,null,null,null,null,null,null,0]
["2025-0(Monat)-00(Aktenzeichenvhs/kvhs)-00(Kursnummer, fortlaufend)",null,null,null,null,null,null,null,null,null,0]
["2025-0(Monat)-00(Aktenzeichenvhs/kvhs)-00(Kursnummer, fortlaufend)",null,null,null,null,null,null,null,null,null,0]
["2025-0(Monat)-00(Aktenzeichenvhs/kvhs)-00(Kursnummer, fortlaufend)",null,null,null,null,null,null,null,null,null,0]
["2025-0(Monat)-00(Aktenzeichenvhs/kvhs)-00(Kursnummer, fortlaufend)",null,null,null,null,null,null,null,null,null,0]
["2025-0(Monat)-00(Aktenzeichenvhs/kvhs)-00(Kursnummer, fortlaufend)",null,null,null,null,null,null,null,null,null,0]
["2025-0(Monat)-00(Aktenzeichenvhs/kvhs)-00(Kursnummer, fortlaufend)",null,null,null,null,null,null,null,null,null,0]
["2025-0(Monat)-00(Aktenzeichenvhs/kvhs)-00(Kursnummer, fortlaufend)",null,null,null,null,null,null,null,null,null,0]
["2025-0(Monat)-00(Aktenzeichenvhs/kvhs)-00(Kursnummer, fortlaufend)",null,null,null,null,null,null,null,null,null,0]
["2025-0(Monat)-00(Aktenzeichenvhs/kvhs)-00(Kursnummer, fortlaufend)",null,null,null,null,null,null,null,null,null,0]
["2025-0(Monat)-00(Aktenzeichenvhs/kvhs)-00(Kursnummer, fortlaufend)",null,null,null,null,null,null,null,null,null,0]
["2025-0(Monat)-00(Aktenzeichenvhs/kvhs)-00(Kursnummer, fortlaufend)",null,null,null,null,null,null,null,null,null,0]
["2025-0(Monat)-00(Aktenzeichenvhs/kvhs)-00(Kursnummer, fortlaufend)",null,null,null,null,null,null,null,null,null,0]
["2025-0(Monat)-00(Aktenzeichenvhs/kvhs)-00(Kursnummer, fortlaufend)",null,null,null,null,null,null,null,null,null,0]
["2025-0(Monat)-00(Aktenzeichenvhs/kvhs)-00(Kursnummer, fortlaufend)",null,null,null,null,null,null,null,null,null,0]
["2025-0(Monat)-00(Aktenzeichenvhs/kvhs)-00(Kursnummer, fortlaufend)",null,null,null,null,null,null,null,null,null,0]
["2025-0(Monat)-00(Aktenzeichenvhs/kvhs)-00(Kursnummer, fortlaufend)",null,null,null,null,null,null,null,null,null,0]
["2025-0(Monat)-00(Aktenzeichenvhs/kvhs)-00(Kursnummer, fortlaufend)",null,null,null,null,null,null,null,null,null,0]
["2025-0(Monat)-00(Aktenzeichenvhs/kvhs)-00(Kursnummer, fortlaufend)",null,null,null,null,null,null,null,null,null,0]
["2025-0(Monat)-00(Aktenzeichenvhs/kvhs)-00(Kursnummer, fortlaufend)",null,null,null,null,null,null,null,null,null,0]
["2025-0(Monat)-00(Aktenzeichenvhs/kvhs)-00(Kursnummer, fortlaufend)",null,null,null,null,null,null,null,null,null,0]
["2025-0(Monat)-00(Aktenzeichenvhs/kvhs)-00(Kursnummer, fortlaufend)",null,null,null,null,null,null,null,null,null,0]
["2025-0(Monat)-00(Aktenzeichenvhs/kvhs)-00(Kursnummer, fortlaufend)",null,null,null,null,null,null,null,null,null,0]
["2025-0(Monat)-00(Aktenzeichenvhs/kvhs)-00(Kursnummer, fortlaufend)",null,null,null,null,null,null,null,null,null,0]
["2025-0(Monat)-00(Aktenzeichenvhs/kvhs)-00(Kursnummer, fortlaufend)",null,null,null,null,null,null,null,null,null,0]
["2025-0(Monat)-00(Aktenzeichenvhs/kvhs)-00(Kursnummer, fortlaufend)",null,null,null,null,null,null,null,null,null,0]
["2025-0(Monat)-00(Aktenzeichenvhs/kvhs)-00(Kursnummer, fortlaufend)",null,null,null,null,null,null,null,null,null,0]
["2025-0(Monat)-00(Aktenzeichenvhs/kvhs)-00(Kursnummer, fortlaufend)",null,null,null,null,null,null,null,null,null,0]
["2025-0(Monat)-00(Aktenzeichenvhs/kvhs)-00(Kursnummer, fortlaufend)",null,null,null,null,null,null,null,null,null,0]
["2025-0(Monat)-00(Aktenzeichenvhs/kvhs)-00(Kursnummer, fortlaufend)",null,null,null,null,null,null,null,null,null,0]
["2025-0(Monat)-00(Aktenzeichenvhs/kvhs)-00(Kursnummer, fortlaufend)",null,null,null,null,null,null,null,null,null,0]
["2025-0(Monat)-00(Aktenzeichenvhs/kvhs)-00(Kursnummer, fortlaufend)",null,null,null,null,null,null,null,null,null,0]
["2025-0(Monat)-00(Aktenzeichenvhs/kvhs)-00(Kursnummer, fortlaufend)",null,null,null,null,null,null,null,null,null,0]
["2025-0(Monat)-00(Aktenzeichenvhs/kvhs)-00(Kursnummer, fortlaufend)",null,null,null,null,null,null,null,null,null,0]
["2025-0(Monat)-00(Aktenzeichenvhs/kvhs)-00(Kursnummer, fortlaufend)",null,null,null,null,null,null,null,null,null,0]
["2025-0(Monat)-00(Aktenzeichenvhs/kvhs)-00(Kursnummer, fortlaufend)",null,null,null,null,null,null,null,null,null,0]
["2025-0(Monat)-00(Aktenzeichenvhs/kvhs)-00(Kursnummer, fortlaufend)",null,null,null,null,null,null,null,null,null,0]
["2025-0(Monat)-00(Aktenzeichenvhs/kvhs)-00(Kursnummer, fortlaufend)",null,null,null,null,null,null,null,null,null,0]
["2025-0(Monat)-00(Aktenzeichenvhs/kvhs)-00(Kursnummer, fortlaufend)",null,null,null,null,null,null,null,null,null,0]
["2025-0(Monat)-00(Aktenzeichenvhs/kvhs)-00(Kursnummer, fortlaufend)",null,null,null,null,null,null,null,null,null,0]
["2025-0(Monat)-00(Aktenzeichenvhs/kvhs)-00(Kursnummer, fortlaufend)",null,null,null,null,null,null,null,null,null,0]
["2025-0(Monat)-00(Aktenzeichenvhs/kvhs)-00(Kursnummer, fortlaufend)",null,null,null,null,null,null,null,null,null,0]
["2025-0(Monat)-00(Aktenzeichenvhs/kvhs)-00(Kursnummer, fortlaufend)",null,null,null,null,null,null,null,null,null,0]
["2025-0(Monat)-00(Aktenzeichenvhs/kvhs)-00(Kursnummer, fortlaufend)",null,null,null,null,null,null,null,null,null,0]
["2025-0(Monat)-00(Aktenzeichenvhs/kvhs)-00(Kursnummer, fortlaufend)",null,null,null,null,null,null,null,null,null,0]
["2025-0(Monat)-00(Aktenzeichenvhs/kvhs)-00(Kursnummer, fortlaufend)",null,null,null,null,null,null,null,null,null,0]
["2025-0(Monat)-00(Aktenzeichenvhs/kvhs)-00(Kursnummer, fortlaufend)",null,null,null,null,null,null,null,null,null,0]
["2025-0(Monat)-00(Aktenzeichenvhs/kvhs)-00(Kursnummer, fortlaufend)",null,null,null,null,null,null,null,null,null,0]
["2025-0(Monat)-00(Aktenzeichenvhs/kvhs)-00(Kursnummer, fortlaufend)",null,null,null,null,null,null,null,null,null,0]
["2025-0(Monat)-00(Aktenzeichenvhs/kvhs)-00(Kursnummer, fortlaufend)",null,null,null,null,null,null,null,null,null,0]
["2025-0(Monat)-00(Aktenzeichenvhs/kvhs)-00(Kursnummer, fortlaufend)",null,null,null,null,null,null,null,null,null,0]
["2025-0(Monat)-00(Aktenzeichenvhs/kvhs)-00(Kursnummer, fortlaufend)",null,null,null,null,null,null,null,null,null,0]
["2025-0(Monat)-00(Aktenzeichenvhs/kvhs)-00(Kursnummer, fortlaufend)",null,null,null,null,null,null,null,null,null,0]
["2025-0(Monat)-00(Aktenzeichenvhs/kvhs)-00(Kursnummer, fortlaufend)",null,null,null,null,null,null,null,null,null,0]
["2025-0(Monat)-00(Aktenzeichenvhs/kvhs)-00(Kursnummer, fortlaufend)",null,null,null,null,null,null,null,null,null,{"$f":"(J155*25)+(IF(J155>0,350,0))","v":0}]
["2025-0(Monat)-00(Aktenzeichenvhs/kvhs)-00(Kursnummer, fortlaufend)",null,null,null,null,null,null,null,null,null,0]
["2025-0(Monat)-00(Aktenzeichenvhs/kvhs)-00(Kursnummer, fortlaufend)",null,null,null,null,null,null,null,null,null,0]
["2025-0(Monat)-00(Aktenzeichenvhs/kvhs)-00(Kursnummer, fortlaufend)",null,null,null,null,null,null,null,null,null,0]
["2025-0(Monat)-00(Aktenzeichenvhs/kvhs)-00(Kursnummer, fortlaufend)",null,null,null,null,null,null,null,null,null,0]
["2025-0(Monat)-00(Aktenzeichenvhs/kvhs)-00(Kursnummer, fortlaufend)",null,null,null,null,null,null,null,null,null,0]
["2025-0(Monat)-00(Aktenzeichenvhs/kvhs)-00(Kursnummer, fortlaufend)",null,null,null,null,null,null,null,null,null,0]
["2025-0(Monat)-00(Aktenzeichenvhs/kvhs)-00(Kursnummer, fortlaufend)",null,null,null,null,null,null,null,null,null,0]
["2025-0(Monat)-00(Aktenzeichenvhs/kvhs)-00(Kursnummer, fortlaufend)",null,null,null,null,null,null,null,null,null,0]
["2025-0(Monat)-00(Aktenzeichenvhs/kvhs)-00(Kursnummer, fortlaufend)",null,null,null,null,null,null,null,null,null,0]
["2025-0(Monat)-00(Aktenzeichenvhs/kvhs)-00(Kursnummer, fortlaufend)",null,null,null,null,null,null,null,null,null,0]
["2025-0(Monat)-00(Aktenzeichenvhs/kvhs)-00(Kursnummer, fortlaufend)",null,null,null,null,null,null,null,null,null,0]
["2025-0(Monat)-00(Aktenzeichenvhs/kvhs)-00(Kursnummer, fortlaufend)",null,null,null,null,null,null,null,null,null,0]
["2025-0(Monat)-00(Aktenzeichenvhs/kvhs)-00(Kursnummer, fortlaufend)",null,null,null,null,null,null,null,null,null,0]
["2025-0(Monat)-00(Aktenzeichenvhs/kvhs)-00(Kursnummer, fortlaufend)",null,null,null,null,null,null,null,null,null,0]
["2025-0(Monat)-00(Aktenzeichenvhs/kvhs)-00(Kursnummer, fortlaufend)",null,null,null,null,null,null,null,null,null,0]
["2025-0(Monat)-00(Aktenzeichenvhs/kvhs)-00(Kursnummer, fortlaufend)",null,null,null,null,null,null,null,null,null,0]
["2025-0(Monat)-00(Aktenzeichenvhs/kvhs)-00(Kursnummer, fortlaufend)",null,null,null,null,null,null,null,null,null,0]
["2025-0(Monat)-00(Aktenzeichenvhs/kvhs)-00(Kursnummer, fortlaufend)",null,null,null,null,null,null,null,null,null,0]
["2025-0(Monat)-00(Aktenzeichenvhs/kvhs)-00(Kursnummer, fortlaufend)",null,null,null,null,null,null,null,null,null,0]
["2025-0(Monat)-00(Aktenzeichenvhs/kvhs)-00(Kursnummer, fortlaufend)",null,null,null,null,null,null,null,null,null,0]
["2025-0(Monat)-00(Aktenzeichenvhs/kvhs)-00(Kursnummer, fortlaufend)",null,null,null,null,null,null,null,null,null,0]
["2025-0(Monat)-00(Aktenzeichenvhs/kvhs)-00(Kursnummer, fortlaufend)",null,null,null,null,null,null,null,null,null,0]
["2025-0(Monat)-00(Aktenzeichenvhs/kvhs)-00(Kursnummer, fortlaufend)",null,null,null,null,null,null,null,null,null,0]
["2025-0(Monat)-00(Aktenzeichenvhs/kvhs)-00(Kursnummer, fortlaufend)",null,null,null,null,null,null,null,null,null,0]
["2025-0(Monat)-00(Aktenzeichenvhs/kvhs)-00(Kursnummer, fortlaufend)",null,null,null,null,null,null,null,null,null,0]
["2025-0(Monat)-00(Aktenzeichenvhs/kvhs)-00(Kursnummer, fortlaufend)",null,null,null,null,null,null,null,null,null,0]
["2025-0(Monat)-00(Aktenzeichenvhs/kvhs)-00(Kursnummer, fortlaufend)",null,null,null,null,null,null,null,null,null,0]
["2025-0(Monat)-00(Aktenzeichenvhs/kvhs)-00(Kursnummer, fortlaufend)",null,null,null,null,null,null,null,null,null,0]
["2025-0(Monat)-00(Aktenzeichenvhs/kvhs)-00(Kursnummer, fortlaufend)",null,null,null,null,null,null,null,null,null,0]
["2025-0(Monat)-00(Aktenzeichenvhs/kvhs)-00(Kursnummer, fortlaufend)",null,null,null,null,null,null,null,null,null,0]
["2025-0(Monat)-00(Aktenzeichenvhs/kvhs)-00(Kursnummer, fortlaufend)",null,null,null,null,null,null,null,null,null,0]
["2025-0(Monat)-00(Aktenzeichenvhs/kvhs)-00(Kursnummer, fortlaufend)",null,null,null,null,null,null,null,null,null,0]
["2025-0(Monat)-00(Aktenzeichenvhs/kvhs)-00(Kursnummer, fortlaufend)",null,null,null,null,null,null,null,null,null,0]
["2025-0(Monat)-00(Aktenzeichenvhs/kvhs)-00(Kursnummer, fortlaufend)",null,null,null,null,null,null,null,null,null,0]
["2025-0(Monat)-00(Aktenzeichenvhs/kvhs)-00(Kursnummer, fortlaufend)",null,null,null,null,null,null,null,null,null,0]
["2025-0(Monat)-00(Aktenzeichenvhs/kvhs)-00(Kursnummer, fortlaufend)",null,null,null,null,null,null,null,null,null,0]
["2025-0(Monat)-00(Aktenzeichenvhs/kvhs)-00(Kursnummer, fortlaufend)",null,null,null,null,null,null,null,null,null,0]
["2025-0(Monat)-00(Aktenzeichenvhs/kvhs)-00(Kursnummer, fortlaufend)",null,null,null,null,null,null,null,null,null,0]
["2025-0(Monat)-00(Aktenzeichenvhs/kvhs)-00(Kursnummer, fortlaufend)",null,null,null,null,null,null,null,null,null,0]
["2025-0(Monat)-00(Aktenzeichenvhs/kvhs)-00(Kursnummer, fortlaufend)",null,null,null,null,null,null,null,null,null,0]
["2025-0(Monat)-00(Aktenzeichenvhs/kvhs)-00(Kursnummer, fortlaufend)",null,null,null,null,null,null,null,null,null,0]
["2025-0(Monat)-00(Aktenzeichenvhs/kvhs)-00(Kursnummer, fortlaufend)",null,null,null,null,null,null,null,null,null,0]
["2025-0(Monat)-00(Aktenzeichenvhs/kvhs)-00(Kursnummer, fortlaufend)",null,null,null,null,null,null,null,null,null,0]
["2025-0(Monat)-00(Aktenzeichenvhs/kvhs)-00(Kursnummer, fortlaufend)",null,null,null,null,null,null,null,null,null,0]
["2025-0(Monat)-00(Aktenzeichenvhs/kvhs)-00(Kursnummer, fortlaufend)",null,null,null,null,null,null,null,null,null,0]
["2025-0(Monat)-00(Aktenzeichenvhs/kvhs)-00(Kursnummer, fortlaufend)",null,null,null,null,null,null,null,null,null,0]
["2025-0(Monat)-00(Aktenzeichenvhs/kvhs)-00(Kursnummer, fortlaufend)",null,null,null,null,null,null,null,null,null,0]
["2025-0(Monat)-00(Aktenzeichenvhs/kvhs)-00(Kursnummer, fortlaufend)",null,null,null,null,null,null,null,null,null,0]
["2025-0(Monat)-00(Aktenzeichenvhs/kvhs)-00(Kursnummer, fortlaufend)",null,null,null,null,null,null,null,null,null,0]
["2025-0(Monat)-00(Aktenzeichenvhs/kvhs)-00(Kursnummer, fortlaufend)",null,null,null,null,null,null,null,null,null,0]
["2025-0(Monat)-00(Aktenzeichenvhs/kvhs)-00(Kursnummer, fortlaufend)",null,null,null,null,null,null,null,null,null,0]
["2025-0(Monat)-00(Aktenzeichenvhs/kvhs)-00(Kursnummer, fortlaufend)",null,null,null,null,null,null,null,null,null,0]
["2025-0(Monat)-00(Aktenzeichenvhs/kvhs)-00(Kursnummer, fortlaufend)",null,null,null,null,null,null,null,null,null,0]
["2025-0(Monat)-00(Aktenzeichenvhs/kvhs)-00(Kursnummer, fortlaufend)",null,null,null,null,null,null,null,null,null,0]
["2025-0(Monat)-00(Aktenzeichenvhs/kvhs)-00(Kursnummer, fortlaufend)",null,null,null,null,null,null,null,null,null,0]
["2025-0(Monat)-00(Aktenzeichenvhs/kvhs)-00(Kursnummer, fortlaufend)",null,null,null,null,null,null,null,null,null,0]
["2025-0(Monat)-00(Aktenzeichenvhs/kvhs)-00(Kursnummer, fortlaufend)",null,null,null,null,null,null,null,null,null,0]
["2025-0(Monat)-00(Aktenzeichenvhs/kvhs)-00(Kursnummer, fortlaufend)",null,null,null,null,null,null,null,null,null,0]
["2025-0(Monat)-00(Aktenzeichenvhs/kvhs)-00(Kursnummer, fortlaufend)",null,null,null,null,null,null,null,null,null,0]
["2025-0(Monat)-00(Aktenzeichenvhs/kvhs)-00(Kursnummer, fortlaufend)",null,null,null,null,null,null,null,null,null,0]
["2025-0(Monat)-00(Aktenzeichenvhs/kvhs)-00(Kursnummer, fortlaufend)",null,null,null,null,null,null,null,null,null,0]
["2025-0(Monat)-00(Aktenzeichenvhs/kvhs)-00(Kursnummer, fortlaufend)",null,null,null,null,null,null,null,null,null,0]
["2025-0(Monat)-00(Aktenzeichenvhs/kvhs)-00(Kursnummer, fortlaufend)",null,null,null,null,null,null,null,null,null,0]
["2025-0(Monat)-00(Aktenzeichenvhs/kvhs)-00(Kursnummer, fortlaufend)",null,null,null,null,null,null,null,null,null,{"$f":"(J219*25)+(IF(J219>0,350,0))","v":0}]
["2025-0(Monat)-00(Aktenzeichenvhs/kvhs)-00(Kursnummer, fortlaufend)",null,null,null,null,null,null,null,null,null,0]
["2025-0(Monat)-00(Aktenzeichenvhs/kvhs)-00(Kursnummer, fortlaufend)",null,null,null,null,null,null,null,null,null,0]
["2025-0(Monat)-00(Aktenzeichenvhs/kvhs)-00(Kursnummer, fortlaufend)",null,null,null,null,null,null,null,null,null,0]
["2025-0(Monat)-00(Aktenzeichenvhs/kvhs)-00(Kursnummer, fortlaufend)",null,null,null,null,null,null,null,null,null,0]
["2025-0(Monat)-00(Aktenzeichenvhs/kvhs)-00(Kursnummer, fortlaufend)",null,null,null,null,null,null,null,null,null,0]
["2025-0(Monat)-00(Aktenzeichenvhs/kvhs)-00(Kursnummer, fortlaufend)",null,null,null,null,null,null,null,null,null,0]
["2025-0(Monat)-00(Aktenzeichenvhs/kvhs)-00(Kursnummer, fortlaufend)",null,null,null,null,null,null,null,null,null,0]
["2025-0(Monat)-00(Aktenzeichenvhs/kvhs)-00(Kursnummer, fortlaufend)",null,null,null,null,null,null,null,null,null,0]
["2025-0(Monat)-00(Aktenzeichenvhs/kvhs)-00(Kursnummer, fortlaufend)",null,null,null,null,null,null,null,null,null,0]
["2025-0(Monat)-00(Aktenzeichenvhs/kvhs)-00(Kursnummer, fortlaufend)",null,null,null,null,null,null,null,null,null,0]
["2025-0(Monat)-00(Aktenzeichenvhs/kvhs)-00(Kursnummer, fortlaufend)",null,null,null,null,null,null,null,null,null,0]
["2025-0(Monat)-00(Aktenzeichenvhs/kvhs)-00(Kursnummer, fortlaufend)",null,null,null,null,null,null,null,null,null,0]
["2025-0(Monat)-00(Aktenzeichenvhs/kvhs)-00(Kursnummer, fortlaufend)",null,null,null,null,null,null,null,null,null,0]
["2025-0(Monat)-00(Aktenzeichenvhs/kvhs)-00(Kursnummer, fortlaufend)",null,null,null,null,null,null,null,null,null,0]
["2025-0(Monat)-00(Aktenzeichenvhs/kvhs)-00(Kursnummer, fortlaufend)",null,null,null,null,null,null,null,null,null,0]
["2025-0(Monat)-00(Aktenzeichenvhs/kvhs)-00(Kursnummer, fortlaufend)",null,null,null,null,null,null,null,null,null,0]
["2025-0(Monat)-00(Aktenzeichenvhs/kvhs)-00(Kursnummer, fortlaufend)",null,null,null,null,null,null,null,null,null,0]
["2025-0(Monat)-00(Aktenzeichenvhs/kvhs)-00(Kursnummer, fortlaufend)",null,null,null,null,null,null,null,null,null,0]
["2025-0(Monat)-00(Aktenzeichenvhs/kvhs)-00(Kursnummer, fortlaufend)",null,null,null,null,null,null,null,null,null,0]
["2025-0(Monat)-00(Aktenzeichenvhs/kvhs)-00(Kursnummer, fortlaufend)",null,null,null,null,null,null,null,null,null,0]
["2025-0(Monat)-00(Aktenzeichenvhs/kvhs)-00(Kursnummer, fortlaufend)",null,null,null,null,null,null,null,null,null,0]
["2025-0(Monat)-00(Aktenzeichenvhs/kvhs)-00(Kursnummer, fortlaufend)",null,null,null,null,null,null,null,null,null,0]
["2025-0(Monat)-00(Aktenzeichenvhs/kvhs)-00(Kursnummer, fortlaufend)",null,null,null,null,null,null,null,null,null,0]
["2025-0(Monat)-00(Aktenzeichenvhs/kvhs)-00(Kursnummer, fortlaufend)",null,null,null,null,null,null,null,null,null,0]
["2025-0(Monat)-00(Aktenzeichenvhs/kvhs)-00(Kursnummer, fortlaufend)",null,null,null,null,null,null,null,null,null,0]
["2025-0(Monat)-00(Aktenzeichenvhs/kvhs)-00(Kursnummer, fortlaufend)",null,null,null,null,null,null,null,null,null,0]
["2025-0(Monat)-00(Aktenzeichenvhs/kvhs)-00(Kursnummer, fortlaufend)",null,null,null,null,null,null,null,null,null,0]
["2025-0(Monat)-00(Aktenzeichenvhs/kvhs)-00(Kursnummer, fortlaufend)",null,null,null,null,null,null,null,null,null,0]
["2025-0(Monat)-00(Aktenzeichenvhs/kvhs)-00(Kursnummer, fortlaufend)",null,null,null,null,null,null,null,null,null,0]
["2025-0(Monat)-00(Aktenzeichenvhs/kvhs)-00(Kursnummer, fortlaufend)",null,null,null,null,null,null,null,null,null,0]
["2025-0(Monat)-00(Aktenzeichenvhs/kvhs)-00(Kursnummer, fortlaufend)",null,null,null,null,null,null,null,null,null,0]
["2025-0(Monat)-00(Aktenzeichenvhs/kvhs)-00(Kursnummer, fortlaufend)",null,null,null,null,null,null,null,null,null,0]
["2025-0(Monat)-00(Aktenzeichenvhs/kvhs)-00(Kursnummer, fortlaufend)",null,null,null,null,null,null,null,null,null,0]
["2025-0(Monat)-00(Aktenzeichenvhs/kvhs)-00(Kursnummer, fortlaufend)",null,null,null,null,null,null,null,null,null,0]
["2025-0(Monat)-00(Aktenzeichenvhs/kvhs)-00(Kursnummer, fortlaufend)",null,null,null,null,null,null,null,null,null,0]
["2025-0(Monat)-00(Aktenzeichenvhs/kvhs)-00(Kursnummer, fortlaufend)",null,null,null,null,null,null,null,null,null,0]
["2025-0(Monat)-00(Aktenzeichenvhs/kvhs)-00(Kursnummer, fortlaufend)",null,null,null,null,null,null,null,null,null,0]
["2025-0(Monat)-00(Aktenzeichenvhs/kvhs)-00(Kursnummer, fortlaufend)",null,null,null,null,null,null,null,null,null,0]
["2025-0(Monat)-00(Aktenzeichenvhs/kvhs)-00(Kursnummer, fortlaufend)",null,null,null,null,null,null,null,null,null,0]
["2025-0(Monat)-00(Aktenzeichenvhs/kvhs)-00(Kursnummer, fortlaufend)",null,null,null,null,null,null,null,null,null,0]
["2025-0(Monat)-00(Aktenzeichenvhs/kvhs)-00(Kursnummer, fortlaufend)",null,null,null,null,null,null,null,null,null,0]
["2025-0(Monat)-00(Aktenzeichenvhs/kvhs)-00(Kursnummer, fortlaufend)",null,null,null,null,null,null,null,null,null,0]
["2025-0(Monat)-00(Aktenzeichenvhs/kvhs)-00(Kursnummer, fortlaufend)",null,null,null,null,null,null,null,null,null,0]
["2025-0(Monat)-00(Aktenzeichenvhs/kvhs)-00(Kursnummer, fortlaufend)",null,null,null,null,null,null,null,null,null,0]
["2025-0(Monat)-00(Aktenzeichenvhs/kvhs)-00(Kursnummer, fortlaufend)",null,null,null,null,null,null,null,null,null,0]
["2025-0(Monat)-00(Aktenzeichenvhs/kvhs)-00(Kursnummer, fortlaufend)",null,null,null,null,null,null,null,null,null,0]
["2025-0(Monat)-00(Aktenzeichenvhs/kvhs)-00(Kursnummer, fortlaufend)",null,null,null,null,null,null,null,null,null,0]
["2025-0(Monat)-00(Aktenzeichenvhs/kvhs)-00(Kursnummer, fortlaufend)",null,null,null,null,null,null,null,null,null,0]
["2025-0(Monat)-00(Aktenzeichenvhs/kvhs)-00(Kursnummer, fortlaufend)",null,null,null,null,null,null,null,null,null,0]
["2025-0(Monat)-00(Aktenzeichenvhs/kvhs)-00(Kursnummer, fortlaufend)",null,null,null,null,null,null,null,null,null,0]
["2025-0(Monat)-00(Aktenzeichenvhs/kvhs)-00(Kursnummer, fortlaufend)",null,null,null,null,null,null,null,null,null,0]
["2025-0(Monat)-00(Aktenzeichenvhs/kvhs)-00(Kursnummer, fortlaufend)",null,null,null,null,null,null,null,null,null,0]
["2025-0(Monat)-00(Aktenzeichenvhs/kvhs)-00(Kursnummer, fortlaufend)",null,null,null,null,null,null,null,null,null,0]
["2025-0(Monat)-00(Aktenzeichenvhs/kvhs)-00(Kursnummer, fortlaufend)",null,null,null,null,null,null,null,null,null,0]
["2025-0(Monat)-00(Aktenzeichenvhs/kvhs)-00(Kursnummer, fortlaufend)",null,null,null,null,null,null,null,null,null,0]
["2025-0(Monat)-00(Aktenzeichenvhs/kvhs)-00(Kursnummer, fortlaufend)",null,null,null,null,null,null,null,null,null,0]
["2025-0(Monat)-00(Aktenzeichenvhs/kvhs)-00(Kursnummer, fortlaufend)",null,null,null,null,null,null,null,null,null,0]
["2025-0(Monat)-00(Aktenzeichenvhs/kvhs)-00(Kursnummer, fortlaufend)",null,null,null,null,null,null,null,null,null,0]
["2025-0(Monat)-00(Aktenzeichenvhs/kvhs)-00(Kursnummer, fortlaufend)",null,null,null,null,null,null,null,null,null,0]
["2025-0(Monat)-00(Aktenzeichenvhs/kvhs)-00(Kursnummer, fortlaufend)",null,null,null,null,null,null,null,null,null,0]
["2025-0(Monat)-00(Aktenzeichenvhs/kvhs)-00(Kursnummer, fortlaufend)",null,null,null,null,null,null,null,null,null,0]
["2025-0(Monat)-00(Aktenzeichenvhs/kvhs)-00(Kursnummer, fortlaufend)",null,null,null,null,null,null,null,null,null,0]
["2025-0(Monat)-00(Aktenzeichenvhs/kvhs)-00(Kursnummer, fortlaufend)",null,null,null,null,null,null,null,null,null,0]
["2025-0(Monat)-00(Aktenzeichenvhs/kvhs)-00(Kursnummer, fortlaufend)",null,null,null,null,null,null,null,null,null,{"$f":"(J283*25)+(IF(J283>0,350,0))","v":0}]
["2025-0(Monat)-00(Aktenzeichenvhs/kvhs)-00(Kursnummer, fortlaufend)",null,null,null,null,null,null,null,null,null,0]
["2025-0(Monat)-00(Aktenzeichenvhs/kvhs)-00(Kursnummer, fortlaufend)",null,null,null,null,null,null,null,null,null,0]
["2025-0(Monat)-00(Aktenzeichenvhs/kvhs)-00(Kursnummer, fortlaufend)",null,null,null,null,null,null,null,null,null,0]
["2025-0(Monat)-00(Aktenzeichenvhs/kvhs)-00(Kursnummer, fortlaufend)",null,null,null,null,null,null,null,null,null,0]
["2025-0(Monat)-00(Aktenzeichenvhs/kvhs)-00(Kursnummer, fortlaufend)",null,null,null,null,null,null,null,null,null,0]
["2025-0(Monat)-00(Aktenzeichenvhs/kvhs)-00(Kursnummer, fortlaufend)",null,null,null,null,null,null,null,null,null,0]
["2025-0(Monat)-00(Aktenzeichenvhs/kvhs)-00(Kursnummer, fortlaufend)",null,null,null,null,null,null,null,null,null,0]
["2025-0(Monat)-00(Aktenzeichenvhs/kvhs)-00(Kursnummer, fortlaufend)",null,null,null,null,null,null,null,null,null,0]
["2025-0(Monat)-00(Aktenzeichenvhs/kvhs)-00(Kursnummer, fortlaufend)",null,null,null,null,null,null,null,null,null,0]
["2025-0(Monat)-00(Aktenzeichenvhs/kvhs)-00(Kursnummer, fortlaufend)",null,null,null,null,null,null,null,null,null,0]
["2025-0(Monat)-00(Aktenzeichenvhs/kvhs)-00(Kursnummer, fortlaufend)",null,null,null,null,null,null,null,null,null,0]
["2025-0(Monat)-00(Aktenzeichenvhs/kvhs)-00(Kursnummer, fortlaufend)",null,null,null,null,null,null,null,null,null,0]
["2025-0(Monat)-00(Aktenzeichenvhs/kvhs)-00(Kursnummer, fortlaufend)",null,null,null,null,null,null,null,null,null,0]
["2025-0(Monat)-00(Aktenzeichenvhs/kvhs)-00(Kursnummer, fortlaufend)",null,null,null,null,null,null,null,null,null,0]
["2025-0(Monat)-00(Aktenzeichenvhs/kvhs)-00(Kursnummer, fortlaufend)",null,null,null,null,null,null,null,null,null,0]
["2025-0(Monat)-00(Aktenzeichenvhs/kvhs)-00(Kursnummer, fortlaufend)",null,null,null,null,null,null,null,null,null,0]
["2025-0(Monat)-00(Aktenzeichenvhs/kvhs)-00(Kursnummer, fortlaufend)",null,null,null,null,null,null,null,null,null,0]
["2025-0(Monat)-00(Aktenzeichenvhs/kvhs)-00(Kursnummer, fortlaufend)",null,null,null,null,null,null,null,null,null,0]
["2025-0(Monat)-00(Aktenzeichenvhs/kvhs)-00(Kursnummer, fortlaufend)",null,null,null,null,null,null,null,null,null,0]
["2025-0(Monat)-00(Aktenzeichenvhs/kvhs)-00(Kursnummer, fortlaufend)",null,null,null,null,null,null,null,null,null,0]
["2025-0(Monat)-00(Aktenzeichenvhs/kvhs)-00(Kursnummer, fortlaufend)",null,null,null,null,null,null,null,null,null,0]
["2025-0(Monat)-00(Aktenzeichenvhs/kvhs)-00(Kursnummer, fortlaufend)",null,null,null,null,null,null,null,null,null,0]
["2025-0(Monat)-00(Aktenzeichenvhs/kvhs)-00(Kursnummer, fortlaufend)",null,null,null,null,null,null,null,null,null,0]
["2025-0(Monat)-00(Aktenzeichenvhs/kvhs)-00(Kursnummer, fortlaufend)",null,null,null,null,null,null,null,null,null,0]
["2025-0(Monat)-00(Aktenzeichenvhs/kvhs)-00(Kursnummer, fortlaufend)",null,null,null,null,null,null,null,null,null,0]
["2025-0(Monat)-00(Aktenzeichenvhs/kvhs)-00(Kursnummer, fortlaufend)",null,null,null,null,null,null,null,null,null,0]
["2025-0(Monat)-00(Aktenzeichenvhs/kvhs)-00(Kursnummer, fortlaufend)",null,null,null,null,null,null,null,null,null,0]
["2025-0(Monat)-00(Aktenzeichenvhs/kvhs)-00(Kursnummer, fortlaufend)",null,null,null,null,null,null,null,null,null,0]
["2025-0(Monat)-00(Aktenzeichenvhs/kvhs)-00(Kursnummer, fortlaufend)",null,null,null,null,null,null,null,null,null,0]
["2025-0(Monat)-00(Aktenzeichenvhs/kvhs)-00(Kursnummer, fortlaufend)",null,null,null,null,null,null,null,null,null,0]
["2025-0(Monat)-00(Aktenzeichenvhs/kvhs)-00(Kursnummer, fortlaufend)",null,null,null,null,null,null,null,null,null,0]
["2025-0(Monat)-00(Aktenzeichenvhs/kvhs)-00(Kursnummer, fortlaufend)",null,null,null,null,null,null,null,null,null,0]
["2025-0(Monat)-00(Aktenzeichenvhs/kvhs)-00(Kursnummer, fortlaufend)",null,null,null,null,null,null,null,null,null,0]
["2025-0(Monat)-00(Aktenzeichenvhs/kvhs)-00(Kursnummer, fortlaufend)",null,null,null,null,null,null,null,null,null,0]
["2025-0(Monat)-00(Aktenzeichenvhs/kvhs)-00(Kursnummer, fortlaufend)",null,null,null,null,null,null,null,null,null,0]
["2025-0(Monat)-00(Aktenzeichenvhs/kvhs)-00(Kursnummer, fortlaufend)",null,null,null,null,null,null,null,null,null,0]
["2025-0(Monat)-00(Aktenzeichenvhs/kvhs)-00(Kursnummer, fortlaufend)",null,null,null,null,null,null,null,null,null,0]
["2025-0(Monat)-00(Aktenzeichenvhs/kvhs)-00(Kursnummer, fortlaufend)",null,null,null,null,null,null,null,null,null,0]
["2025-0(Monat)-00(Aktenzeichenvhs/kvhs)-00(Kursnummer, fortlaufend)",null,null,null,null,null,null,null,null,null,0]
["2025-0(Monat)-00(Aktenzeichenvhs/kvhs)-00(Kursnummer, fortlaufend)",null,null,null,null,null,null,null,null,null,0]
["2025-0(Monat)-00(Aktenzeichenvhs/kvhs)-00(Kursnummer, fortlaufend)",null,null,null,null,null,null,null,null,null,0]
["2025-0(Monat)-00(Aktenzeichenvhs/kvhs)-00(Kursnummer, fortlaufend)",null,null,null,null,null,null,null,null,null,0]
["2025-0(Monat)-00(Aktenzeichenvhs/kvhs)-00(Kursnummer, fortlaufend)",null,null,null,null,null,null,null,null,null,0]
["2025-0(Monat)-00(Aktenzeichenvhs/kvhs)-00(Kursnummer, fortlaufend)",null,null,null,null,null,null,null,null,null,0]
["2025-0(Monat)-00(Aktenzeichenvhs/kvhs)-00(Kursnummer, fortlaufend)",null,null,null,null,null,null,null,null,null,0]
["2025-0(Monat)-00(Aktenzeichenvhs/kvhs)-00(Kursnummer, fortlaufend)",null,null,null,null,null,null,null,null,null,0]
["2025-0(Monat)-00(Aktenzeichenvhs/kvhs)-00(Kursnummer, fortlaufend)",null,null,null,null,null,null,null,null,null,0]
["2025-0(Monat)-00(Aktenzeichenvhs/kvhs)-00(Kursnummer, fortlaufend)",null,null,null,null,null,null,null,null,null,0]
["2025-0(Monat)-00(Aktenzeichenvhs/kvhs)-00(Kursnummer, fortlaufend)",null,null,null,null,null,null,null,null,null,0]
["2025-0(Monat)-00(Aktenzeichenvhs/kvhs)-00(Kursnummer, fortlaufend)",null,null,null,null,null,null,null,null,null,0]
["2025-0(Monat)-00(Aktenzeichenvhs/kvhs)-00(Kursnummer, fortlaufend)",null,null,null,null,null,null,null,null,null,0]
["2025-0(Monat)-00(Aktenzeichenvhs/kvhs)-00(Kursnummer, fortlaufend)",null,null,null,null,null,null,null,null,null,0]
["2025-0(Monat)-00(Aktenzeichenvhs/kvhs)-00(Kursnummer, fortlaufend)",null,null,null,null,null,null,null,null,null,0]
["2025-0(Monat)-00(Aktenzeichenvhs/kvhs)-00(Kursnummer, fortlaufend)",null,null,null,null,null,null,null,null,null,0]
["2025-0(Monat)-00(Aktenzeichenvhs/kvhs)-00(Kursnummer, fortlaufend)",null,null,null,null,null,null,null,null,null,0]
["2025-0(Monat)-00(Aktenzeichenvhs/kvhs)-00(Kursnummer, fortlaufend)",null,null,null,null,null,null,null,null,null,0]
["2025-0(Monat)-00(Aktenzeichenvhs/kvhs)-00(Kursnummer, fortlaufend)",null,null,null,null,null,null,null,null,null,0]
["2025-0(Monat)-00(Aktenzeichenvhs/kvhs)-00(Kursnummer, fortlaufend)",null,null,null,null,null,null,null,null,null,0]
["2025-0(Monat)-00(Aktenzeichenvhs/kvhs)-00(Kursnummer, fortlaufend)",null,null,null,null,null,null,null,null,null,0]
["2025-0(Monat)-00(Aktenzeichenvhs/kvhs)-00(Kursnummer, fortlaufend)",null,null,null,null,null,null,null,null,null,0]
["2025-0(Monat)-00(Aktenzeichenvhs/kvhs)-00(Kursnummer, fortlaufend)",null,null,null,null,null,null,null,null,null,0]
["2025-0(Monat)-00(Aktenzeichenvhs/kvhs)-00(Kursnummer, fortlaufend)",null,null,null,null,null,null,null,null,null,0]
["2025-0(Monat)-00(Aktenzeichenvhs/kvhs)-00(Kursnummer, fortlaufend)",null,null,null,null,null,null,null,null,null,0]
["2025-0(Monat)-00(Aktenzeichenvhs/kvhs)-00(Kursnummer, fortlaufend)",null,null,null,null,null,null,null,null,null,{"$f":"(J347*25)+(IF(J347>0,350,0))","v":0}]
["2025-0(Monat)-00(Aktenzeichenvhs/kvhs)-00(Kursnummer, fortlaufend)",null,null,null,null,null,null,null,null,null,0]
["2025-0(Monat)-00(Aktenzeichenvhs/kvhs)-00(Kursnummer, fortlaufend)",null,null,null,null,null,null,null,null,null,0]
["2025-0(Monat)-00(Aktenzeichenvhs/kvhs)-00(Kursnummer, fortlaufend)",null,null,null,null,null,null,null,null,null,0]
["2025-0(Monat)-00(Aktenzeichenvhs/kvhs)-00(Kursnummer, fortlaufend)",null,null,null,null,null,null,null,null,null,0]
["2025-0(Monat)-00(Aktenzeichenvhs/kvhs)-00(Kursnummer, fortlaufend)",null,null,null,null,null,null,null,null,null,0]
["2025-0(Monat)-00(Aktenzeichenvhs/kvhs)-00(Kursnummer, fortlaufend)",null,null,null,null,null,null,null,null,null,0]
["2025-0(Monat)-00(Aktenzeichenvhs/kvhs)-00(Kursnummer, fortlaufend)",null,null,null,null,null,null,null,null,null,0]
["2025-0(Monat)-00(Aktenzeichenvhs/kvhs)-00(Kursnummer, fortlaufend)",null,null,null,null,null,null,null,null,null,0]
["2025-0(Monat)-00(Aktenzeichenvhs/kvhs)-00(Kursnummer, fortlaufend)",null,null,null,null,null,null,null,null,null,0]
["2025-0(Monat)-00(Aktenzeichenvhs/kvhs)-00(Kursnummer, fortlaufend)",null,null,null,null,null,null,null,null,null,0]
["2025-0(Monat)-00(Aktenzeichenvhs/kvhs)-00(Kursnummer, fortlaufend)",null,null,null,null,null,null,null,null,null,0]
["2025-0(Monat)-00(Aktenzeichenvhs/kvhs)-00(Kursnummer, fortlaufend)",null,null,null,null,null,null,null,null,null,0]
["2025-0(Monat)-00(Aktenzeichenvhs/kvhs)-00(Kursnummer, fortlaufend)",null,null,null,null,null,null,null,null,null,0]
["2025-0(Monat)-00(Aktenzeichenvhs/kvhs)-00(Kursnummer, fortlaufend)",null,null,null,null,null,null,null,null,null,0]
["2025-0(Monat)-00(Aktenzeichenvhs/kvhs)-00(Kursnummer, fortlaufend)",null,null,null,null,null,null,null,null,null,0]
["2025-0(Monat)-00(Aktenzeichenvhs/kvhs)-00(Kursnummer, fortlaufend)",null,null,null,null,null,null,null,null,null,0]
["2025-0(Monat)-00(Aktenzeichenvhs/kvhs)-00(Kursnummer, fortlaufend)",null,null,null,null,null,null,null,null,null,0]
["2025-0(Monat)-00(Aktenzeichenvhs/kvhs)-00(Kursnummer, fortlaufend)",null,null,null,null,null,null,null,null,null,0]
["2025-0(Monat)-00(Aktenzeichenvhs/kvhs)-00(Kursnummer, fortlaufend)",null,null,null,null,null,null,null,null,null,0]
["2025-0(Monat)-00(Aktenzeichenvhs/kvhs)-00(Kursnummer, fortlaufend)",null,null,null,null,null,null,null,null,null,0]
["2025-0(Monat)-00(Aktenzeichenvhs/kvhs)-00(Kursnummer, fortlaufend)",null,null,null,null,null,null,null,null,null,0]
["2025-0(Monat)-00(Aktenzeichenvhs/kvhs)-00(Kursnummer, fortlaufend)",null,null,null,null,null,null,null,null,null,0]
["2025-0(Monat)-00(Aktenzeichenvhs/kvhs)-00(Kursnummer, fortlaufend)",null,null,null,null,null,null,null,null,null,0]
["2025-0(Monat)-00(Aktenzeichenvhs/kvhs)-00(Kursnummer, fortlaufend)",null,null,null,null,null,null,null,null,null,0]
["2025-0(Monat)-00(Aktenzeichenvhs/kvhs)-00(Kursnummer, fortlaufend)",null,null,null,null,null,null,null,null,null,0]
["2025-0(Monat)-00(Aktenzeichenvhs/kvhs)-00(Kursnummer, fortlaufend)",null,null,null,null,null,null,null,null,null,0]
["2025-0(Monat)-00(Aktenzeichenvhs/kvhs)-00(Kursnummer, fortlaufend)",null,null,null,null,null,null,null,null,null,0]
["2025-0(Monat)-00(Aktenzeichenvhs/kvhs)-00(Kursnummer, fortlaufend)",null,null,null,null,null,null,null,null,null,0]
["2025-0(Monat)-00(Aktenzeichenvhs/kvhs)-00(Kursnummer, fortlaufend)",null,null,null,null,null,null,null,null,null,0]
["2025-0(Monat)-00(Aktenzeichenvhs/kvhs)-00(Kursnummer, fortlaufend)",null,null,null,null,null,null,null,null,null,0]
["2025-0(Monat)-00(Aktenzeichenvhs/kvhs)-00(Kursnummer, fortlaufend)",null,null,null,null,null,null,null,null,null,0]
["2025-0(Monat)-00(Aktenzeichenvhs/kvhs)-00(Kursnummer, fortlaufend)",null,null,null,null,null,null,null,null,null,0]
["2025-0(Monat)-00(Aktenzeichenvhs/kvhs)-00(Kursnummer, fortlaufend)",null,null,null,null,null,null,null,null,null,0]
["2025-0(Monat)-00(Aktenzeichenvhs/kvhs)-00(Kursnummer, fortlaufend)",null,null,null,null,null,null,null,null,null,0]
["2025-0(Monat)-00(Aktenzeichenvhs/kvhs)-00(Kursnummer, fortlaufend)",null,null,null,null,null,null,null,null,null,0]
["2025-0(Monat)-00(Aktenzeichenvhs/kvhs)-00(Kursnummer, fortlaufend)",null,null,null,null,null,null,null,null,null,0]
["2025-0(Monat)-00(Aktenzeichenvhs/kvhs)-00(Kursnummer, fortlaufend)",null,null,null,null,null,null,null,null,null,0]
["2025-0(Monat)-00(Aktenzeichenvhs/kvhs)-00(Kursnummer, fortlaufend)",null,null,null,null,null,null,null,null,null,0]
["2025-0(Monat)-00(Aktenzeichenvhs/kvhs)-00(Kursnummer, fortlaufend)",null,null,null,null,null,null,null,null,null,0]
["2025-0(Monat)-00(Aktenzeichenvhs/kvhs)-00(Kursnummer, fortlaufend)",null,null,null,null,null,null,null,null,null,0]
["2025-0(Monat)-00(Aktenzeichenvhs/kvhs)-00(Kursnummer, fortlaufend)",null,null,null,null,null,null,null,null,null,0]
["2025-0(Monat)-00(Aktenzeichenvhs/kvhs)-00(Kursnummer, fortlaufend)",null,null,null,null,null,null,null,null,null,0]
["2025-0(Monat)-00(Aktenzeichenvhs/kvhs)-00(Kursnummer, fortlaufend)",null,null,null,null,null,null,null,null,null,0]
["2025-0(Monat)-00(Aktenzeichenvhs/kvhs)-00(Kursnummer, fortlaufend)",null,null,null,null,null,null,null,null,null,0]
["2025-0(Monat)-00(Aktenzeichenvhs/kvhs)-00(Kursnummer, fortlaufend)",null,null,null,null,null,null,null,null,null,0]
["2025-0(Monat)-00(Aktenzeichenvhs/kvhs)-00(Kursnummer, fortlaufend)",null,null,null,null,null,null,null,null,null,0]
["2025-0(Monat)-00(Aktenzeichenvhs/kvhs)-00(Kursnummer, fortlaufend)",null,null,null,null,null,null,null,null,null,0]
["2025-0(Monat)-00(Aktenzeichenvhs/kvhs)-00(Kursnummer, fortlaufend)",null,null,null,null,null,null,null,null,null,0]
["2025-0(Monat)-00(Aktenzeichenvhs/kvhs)-00(Kursnummer, fortlaufend)",null,null,null,null,null,null,null,null,null,0]
["2025-0(Monat)-00(Aktenzeichenvhs/kvhs)-00(Kursnummer, fortlaufend)",null,null,null,null,null,null,null,null,null,0]
["2025-0(Monat)-00(Aktenzeichenvhs/kvhs)-00(Kursnummer, fortlaufend)",null,null,null,null,null,null,null,null,null,0]
["2025-0(Monat)-00(Aktenzeichenvhs/kvhs)-00(Kursnummer, fortlaufend)",null,null,null,null,null,null,null,null,null,0]
["2025-0(Monat)-00(Aktenzeichenvhs/kvhs)-00(Kursnummer, fortlaufend)",null,null,null,null,null,null,null,null,null,0]
["2025-0(Monat)-00(Aktenzeichenvhs/kvhs)-00(Kursnummer, fortlaufend)",null,null,null,null,null,null,null,null,null,0]
["2025-0(Monat)-00(Aktenzeichenvhs/kvhs)-00(Kursnummer, fortlaufend)",null,null,null,null,null,null,null,null,null,0]
["2025-0(Monat)-00(Aktenzeichenvhs/kvhs)-00(Kursnummer, fortlaufend)",null,null,null,null,null,null,null,null,null,0]
["2025-0(Monat)-00(Aktenzeichenvhs/kvhs)-00(Kursnummer, fortlaufend)",null,null,null,null,null,null,null,null,null,0]
["2025-0(Monat)-00(Aktenzeichenvhs/kvhs)-00(Kursnummer, fortlaufend)",null,null,null,null,null,null,null,null,null,0]
["2025-0(Monat)-00(Aktenzeichenvhs/kvhs)-00(Kursnummer, fortlaufend)",null,null,null,null,null,null,null,null,null,0]
["2025-0(Monat)-00(Aktenzeichenvhs/kvhs)-00(Kursnummer, fortlaufend)",null,null,null,null,null,null,null,null,null,0]
["2025-0(Monat)-00(Aktenzeichenvhs/kvhs)-00(Kursnummer, fortlaufend)",null,null,null,null,null,null,null,null,null,0]
["2025-0(Monat)-00(Aktenzeichenvhs/kvhs)-00(Kursnummer, fortlaufend)",null,null,null,null,null,null,null,null,null,0]
["2025-0(Monat)-00(Aktenzeichenvhs/kvhs)-00(Kursnummer, fortlaufend)",null,null,null,null,null,null,null,null,null,0]
["2025-0(Monat)-00(Aktenzeichenvhs/kvhs)-00(Kursnummer, fortlaufend)",null,null,null,null,null,null,null,null,null,{"$f":"(J411*25)+(IF(J411>0,350,0))","v":0}]
["2025-0(Monat)-00(Aktenzeichenvhs/kvhs)-00(Kursnummer, fortlaufend)",null,null,null,null,null,null,null,null,null,0]
["2025-0(Monat)-00(Aktenzeichenvhs/kvhs)-00(Kursnummer, fortlaufend)",null,null,null,null,null,null,null,null,null,0]
["2025-0(Monat)-00(Aktenzeichenvhs/kvhs)-00(Kursnummer, fortlaufend)",null,null,null,null,null,null,null,null,null,0]
["2025-0(Monat)-00(Aktenzeichenvhs/kvhs)-00(Kursnummer, fortlaufend)",null,null,null,null,null,null,null,null,null,0]
["2025-0(Monat)-00(Aktenzeichenvhs/kvhs)-00(Kursnummer, fortlaufend)",null,null,null,null,null,null,null,null,null,0]
["2025-0(Monat)-00(Aktenzeichenvhs/kvhs)-00(Kursnummer, fortlaufend)",null,null,null,null,null,null,null,null,null,0]
["2025-0(Monat)-00(Aktenzeichenvhs/kvhs)-00(Kursnummer, fortlaufend)",null,null,null,null,null,null,null,null,null,0]
["2025-0(Monat)-00(Aktenzeichenvhs/kvhs)-00(Kursnummer, fortlaufend)",null,null,null,null,null,null,null,null,null,0]
["2025-0(Monat)-00(Aktenzeichenvhs/kvhs)-00(Kursnummer, fortlaufend)",null,null,null,null,null,null,null,null,null,0]
["2025-0(Monat)-00(Aktenzeichenvhs/kvhs)-00(Kursnummer, fortlaufend)",null,null,null,null,null,null,null,null,null,0]
["2025-0(Monat)-00(Aktenzeichenvhs/kvhs)-00(Kursnummer, fortlaufend)",null,null,null,null,null,null,null,null,null,0]
["2025-0(Monat)-00(Aktenzeichenvhs/kvhs)-00(Kursnummer, fortlaufend)",null,null,null,null,null,null,null,null,null,0]
["2025-0(Monat)-00(Aktenzeichenvhs/kvhs)-00(Kursnummer, fortlaufend)",null,null,null,null,null,null,null,null,null,0]
["2025-0(Monat)-00(Aktenzeichenvhs/kvhs)-00(Kursnummer, fortlaufend)",null,null,null,null,null,null,null,null,null,0]
["2025-0(Monat)-00(Aktenzeichenvhs/kvhs)-00(Kursnummer, fortlaufend)",null,null,null,null,null,null,null,null,null,0]
["2025-0(Monat)-00(Aktenzeichenvhs/kvhs)-00(Kursnummer, fortlaufend)",null,null,null,null,null,null,null,null,null,0]
["2025-0(Monat)-00(Aktenzeichenvhs/kvhs)-00(Kursnummer, fortlaufend)",null,null,null,null,null,null,null,null,null,0]
["2025-0(Monat)-00(Aktenzeichenvhs/kvhs)-00(Kursnummer, fortlaufend)",null,null,null,null,null,null,null,null,null,0]
["2025-0(Monat)-00(Aktenzeichenvhs/kvhs)-00(Kursnummer, fortlaufend)",null,null,null,null,null,null,null,null,null,0]
["2025-0(Monat)-00(Aktenzeichenvhs/kvhs)-00(Kursnummer, fortlaufend)",null,null,null,null,null,null,null,null,null,0]
["2025-0(Monat)-00(Aktenzeichenvhs/kvhs)-00(Kursnummer, fortlaufend)",null,null,null,null,null,null,null,null,null,0]
["2025-0(Monat)-00(Aktenzeichenvhs/kvhs)-00(Kursnummer, fortlaufend)",null,null,null,null,null,null,null,null,null,0]
["2025-0(Monat)-00(Aktenzeichenvhs/kvhs)-00(Kursnummer, fortlaufend)",null,null,null,null,null,null,null,null,null,0]
["2025-0(Monat)-00(Aktenzeichenvhs/kvhs)-00(Kursnummer, fortlaufend)",null,null,null,null,null,null,null,null,null,0]
["2025-0(Monat)-00(Aktenzeichenvhs/kvhs)-00(Kursnummer, fortlaufend)",null,null,null,null,null,null,null,null,null,0]
["2025-0(Monat)-00(Aktenzeichenvhs/kvhs)-00(Kursnummer, fortlaufend)",null,null,null,null,null,null,null,null,null,0]
["2025-0(Monat)-00(Aktenzeichenvhs/kvhs)-00(Kursnummer, fortlaufend)",null,null,null,null,null,null,null,null,null,0]
["2025-0(Monat)-00(Aktenzeichenvhs/kvhs)-00(Kursnummer, fortlaufend)",null,null,null,null,null,null,null,null,null,0]
["2025-0(Monat)-00(Aktenzeichenvhs/kvhs)-00(Kursnummer, fortlaufend)",null,null,null,null,null,null,null,null,null,0]
["2025-0(Monat)-00(Aktenzeichenvhs/kvhs)-00(Kursnummer, fortlaufend)",null,null,null,null,null,null,null,null,null,0]
["2025-0(Monat)-00(Aktenzeichenvhs/kvhs)-00(Kursnummer, fortlaufend)",null,null,null,null,null,null,null,null,null,0]
["2025-0(Monat)-00(Aktenzeichenvhs/kvhs)-00(Kursnummer, fortlaufend)",null,null,null,null,null,null,null,null,null,0]
["2025-0(Monat)-00(Aktenzeichenvhs/kvhs)-00(Kursnummer, fortlaufend)",null,null,null,null,null,null,null,null,null,0]
["2025-0(Monat)-00(Aktenzeichenvhs/kvhs)-00(Kursnummer, fortlaufend)",null,null,null,null,null,null,null,null,null,0]
["2025-0(Monat)-00(Aktenzeichenvhs/kvhs)-00(Kursnummer, fortlaufend)",null,null,null,null,null,null,null,null,null,0]
["2025-0(Monat)-00(Aktenzeichenvhs/kvhs)-00(Kursnummer, fortlaufend)",null,null,null,null,null,null,null,null,null,0]
["2025-0(Monat)-00(Aktenzeichenvhs/kvhs)-00(Kursnummer, fortlaufend)",null,null,null,null,null,null,null,null,null,0]
["2025-0(Monat)-00(Aktenzeichenvhs/kvhs)-00(Kursnummer, fortlaufend)",null,null,null,null,null,null,null,null,null,0]
["2025-0(Monat)-00(Aktenzeichenvhs/kvhs)-00(Kursnummer, fortlaufend)",null,null,null,null,null,null,null,null,null,0]
["2025-0(Monat)-00(Aktenzeichenvhs/kvhs)-00(Kursnummer, fortlaufend)",null,null,null,null,null,null,null,null,null,0]
["2025-0(Monat)-00(Aktenzeichenvhs/kvhs)-00(Kursnummer, fortlaufend)",null,null,null,null,null,null,null,null,null,0]
["2025-0(Monat)-00(Aktenzeichenvhs/kvhs)-00(Kursnummer, fortlaufend)",null,null,null,null,null,null,null,null,null,0]
["2025-0(Monat)-00(Aktenzeichenvhs/kvhs)-00(Kursnummer, fortlaufend)",null,null,null,null,null,null,null,null,null,0]
["2025-0(Monat)-00(Aktenzeichenvhs/kvhs)-00(Kursnummer, fortlaufend)",null,null,null,null,null,null,null,null,null,0]
["2025-0(Monat)-00(Aktenzeichenvhs/kvhs)-00(Kursnummer, fortlaufend)",null,null,null,null,null,null,null,null,null,0]
["2025-0(Monat)-00(Aktenzeichenvhs/kvhs)-00(Kursnummer, fortlaufend)",null,null,null,null,null,null,null,null,null,0]
["2025-0(Monat)-00(Aktenzeichenvhs/kvhs)-00(Kursnummer, fortlaufend)",null,null,null,null,null,null,null,null,null,0]
["2025-0(Monat)-00(Aktenzeichenvhs/kvhs)-00(Kursnummer, fortlaufend)",null,null,null,null,null,null,null,null,null,0]
["2025-0(Monat)-00(Aktenzeichenvhs/kvhs)-00(Kursnummer, fortlaufend)",null,null,null,null,null,null,null,null,null,0]
["2025-0(Monat)-00(Aktenzeichenvhs/kvhs)-00(Kursnummer, fortlaufend)",null,null,null,null,null,null,null,null,null,0]
["2025-0(Monat)-00(Aktenzeichenvhs/kvhs)-00(Kursnummer, fortlaufend)",null,null,null,null,null,null,null,null,null,0]
["2025-0(Monat)-00(Aktenzeichenvhs/kvhs)-00(Kursnummer, fortlaufend)",null,null,null,null,null,null,null,null,null,0]
["2025-0(Monat)-00(Aktenzeichenvhs/kvhs)-00(Kursnummer, fortlaufend)",null,null,null,null,null,null,null,null,null,0]
["2025-0(Monat)-00(Aktenzeichenvhs/kvhs)-00(Kursnummer, fortlaufend)",null,null,null,null,null,null,null,null,null,0]
["2025-0(Monat)-00(Aktenzeichenvhs/kvhs)-00(Kursnummer, fortlaufend)",null,null,null,null,null,null,null,null,null,0]
["2025-0(Monat)-00(Aktenzeichenvhs/kvhs)-00(Kursnummer, fortlaufend)",null,null,null,null,null,null,null,null,null,0]
["2025-0(Monat)-00(Aktenzeichenvhs/kvhs)-00(Kursnummer, fortlaufend)",null,null,null,null,null,null,null,null,null,0]
["2025-0(Monat)-00(Aktenzeichenvhs/kvhs)-00(Kursnummer, fortlaufend)",null,null,null,null,null,null,null,null,null,0]
["2025-0(Monat)-00(Aktenzeichenvhs/kvhs)-00(Kursnummer, fortlaufend)",null,null,null,null,null,null,null,null,null,0]
["2025-0(Monat)-00(Aktenzeichenvhs/kvhs)-00(Kursnummer, fortlaufend)",null,null,null,null,null,null,null,null,null,0]
["2025-0(Monat)-00(Aktenzeichenvhs/kvhs)-00(Kursnummer, fortlaufend)",null,null,null,null,null,null,null,null,null,0]
["2025-0(Monat)-00(Aktenzeichenvhs/kvhs)-00(Kursnummer, fortlaufend)",null,null,null,null,null,null,null,null,null,0]
["2025-0(Monat)-00(Aktenzeichenvhs/kvhs)-00(Kursnummer, fortlaufend)",null,null,null,null,null,null,null,null,null,0]
["2025-0(Monat)-00(Aktenzeichenvhs/kvhs)-00(Kursnummer, fortlaufend)",null,null,null,null,null,null,null,null,null,{"$f":"(J475*25)+(IF(J475>0,350,0))","v":0}]
["2025-0(Monat)-00(Aktenzeichenvhs/kvhs)-00(Kursnummer, fortlaufend)",null,null,null,null,null,null,null,null,null,0]
["2025-0(Monat)-00(Aktenzeichenvhs/kvhs)-00(Kursnummer, fortlaufend)",null,null,null,null,null,null,null,null,null,0]
["2025-0(Monat)-00(Aktenzeichenvhs/kvhs)-00(Kursnummer, fortlaufend)",null,null,null,null,null,null,null,null,null,0]
["2025-0(Monat)-00(Aktenzeichenvhs/kvhs)-00(Kursnummer, fortlaufend)",null,null,null,null,null,null,null,null,null,0]
["2025-0(Monat)-00(Aktenzeichenvhs/kvhs)-00(Kursnummer, fortlaufend)",null,null,null,null,null,null,null,null,null,0]
["2025-0(Monat)-00(Aktenzeichenvhs/kvhs)-00(Kursnummer, fortlaufend)",null,null,null,null,null,null,null,null,null,0]
["2025-0(Monat)-00(Aktenzeichenvhs/kvhs)-00(Kursnummer, fortlaufend)",null,null,null,null,null,null,null,null,null,0]
["2025-0(Monat)-00(Aktenzeichenvhs/kvhs)-00(Kursnummer, fortlaufend)",null,null,null,null,null,null,null,null,null,0]
["2025-0(Monat)-00(Aktenzeichenvhs/kvhs)-00(Kursnummer, fortlaufend)",null,null,null,null,null,null,null,null,null,0]
["2025-0(Monat)-00(Aktenzeichenvhs/kvhs)-00(Kursnummer, fortlaufend)",null,null,null,null,null,null,null,null,null,0]
["2025-0(Monat)-00(Aktenzeichenvhs/kvhs)-00(Kursnummer, fortlaufend)",null,null,null,null,null,null,null,null,null,0]
["2025-0(Monat)-00(Aktenzeichenvhs/kvhs)-00(Kursnummer, fortlaufend)",null,null,null,null,null,null,null,null,null,0]
["2025-0(Monat)-00(Aktenzeichenvhs/kvhs)-00(Kursnummer, fortlaufend)",null,null,null,null,null,null,null,null,null,0]
["2025-0(Monat)-00(Aktenzeichenvhs/kvhs)-00(Kursnummer, fortlaufend)",null,null,null,null,null,null,null,null,null,0]
["2025-0(Monat)-00(Aktenzeichenvhs/kvhs)-00(Kursnummer, fortlaufend)",null,null,null,null,null,null,null,null,null,0]
["2025-0(Monat)-00(Aktenzeichenvhs/kvhs)-00(Kursnummer, fortlaufend)",null,null,null,null,null,null,null,null,null,0]
["2025-0(Monat)-00(Aktenzeichenvhs/kvhs)-00(Kursnummer, fortlaufend)",null,null,null,null,null,null,null,null,null,0]
["2025-0(Monat)-00(Aktenzeichenvhs/kvhs)-00(Kursnummer, fortlaufend)",null,null,null,null,null,null,null,null,null,0]
["2025-0(Monat)-00(Aktenzeichenvhs/kvhs)-00(Kursnummer, fortlaufend)",null,null,null,null,null,null,null,null,null,0]
["2025-0(Monat)-00(Aktenzeichenvhs/kvhs)-00(Kursnummer, fortlaufend)",null,null,null,null,null,null,null,null,null,0]
["2025-0(Monat)-00(Aktenzeichenvhs/kvhs)-00(Kursnummer, fortlaufend)",null,null,null,null,null,null,null,null,null,0]
["2025-0(Monat)-00(Aktenzeichenvhs/kvhs)-00(Kursnummer, fortlaufend)",null,null,null,null,null,null,null,null,null,0]
["2025-0(Monat)-00(Aktenzeichenvhs/kvhs)-00(Kursnummer, fortlaufend)",null,null,null,null,null,null,null,null,null,0]
["2025-0(Monat)-00(Aktenzeichenvhs/kvhs)-00(Kursnummer, fortlaufend)",null,null,null,null,null,null,null,null,null,0]
["2025-0(Monat)-00(Aktenzeichenvhs/kvhs)-00(Kursnummer, fortlaufend)",null,null,null,null,null,null,null,null,null,0]
["2025-0(Monat)-00(Aktenzeichenvhs/kvhs)-00(Kursnummer, fortlaufend)",null,null,null,null,null,null,null,null,null,0]
["2025-0(Monat)-00(Aktenzeichenvhs/kvhs)-00(Kursnummer, fortlaufend)",null,null,null,null,null,null,null,null,null,0]
["2025-0(Monat)-00(Aktenzeichenvhs/kvhs)-00(Kursnummer, fortlaufend)",null,null,null,null,null,null,null,null,null,0]
["2025-0(Monat)-00(Aktenzeichenvhs/kvhs)-00(Kursnummer, fortlaufend)",null,null,null,null,null,null,null,null,null,0]
["2025-0(Monat)-00(Aktenzeichenvhs/kvhs)-00(Kursnummer, fortlaufend)",null,null,null,null,null,null,null,null,null,0]
["2025-0(Monat)-00(Aktenzeichenvhs/kvhs)-00(Kursnummer, fortlaufend)",null,null,null,null,null,null,null,null,null,0]
["2025-0(Monat)-00(Aktenzeichenvhs/kvhs)-00(Kursnummer, fortlaufend)",null,null,null,null,null,null,null,null,null,0]
["2025-0(Monat)-00(Aktenzeichenvhs/kvhs)-00(Kursnummer, fortlaufend)",null,null,null,null,null,null,null,null,null,0]
["2025-0(Monat)-00(Aktenzeichenvhs/kvhs)-00(Kursnummer, fortlaufend)",null,null,null,null,null,null,null,null,null,0]
["2025-0(Monat)-00(Aktenzeichenvhs/kvhs)-00(Kursnummer, fortlaufend)",null,null,null,null,null,null,null,null,null,0]
["2025-0(Monat)-00(Aktenzeichenvhs/kvhs)-00(Kursnummer, fortlaufend)",null,null,null,null,null,null,null,null,null,0]
[null,null,null,null,null,null,null,null,null,null,0]
[null,null,null,null,null,null,null,null,null,null,0]
[null,null,null,null,null,null,null,null,null,null,0]
[null,null,null,null,null,null,null,null,null,null,0]
[null,null,null,null,null,null,null,null,null,null,0]
[null,null,null,null,null,null,null,null,null,null,0]
[null,null,null,null,null,null,null,null,null,null,0]
[null,null,null,null,null,null,null,null,null,null,0]
[null,null,null,null,null,null,null,null,null,null,0]
[null,null,null,null,null,null,null,null,null,null,0]
[null,null,null,null,null,null,null,null,null,null,0]
[null,null,null,null,null,null,null,null,null,null,0]
[null,null,null,null,null,null,null,null,null,null,0]
[null,null,null,null,null,null,null,null,null,null,0]
[null,null,null,null,null,null,null,null,null,null,0]
[null,null,null,null,null,null,null,null,null,null,0]
[null,null,null,null,null,null,null,null,null,null,0]
[null,null,null,null,null,null,null,null,null,null,0]
[null,null,null,null,null,null,null,null,null,null,0]
[null,null,null,null,null,null,null,null,null,null,0]
[null,null,null,null,null,null,null,null,null,null,0]
[null,null,null,null,null,null,null,null,null,null,0]
[null,null,null,null,null,null,null,null,null,null,0]
[null,null,null,null,null,null,null,null,null,null,0]
[null,null,null,null,null,null,null,null,null,null,0]
[null,null,null,null,null,null,null,null,null,null,0]
[null,null,null,null,null,null,null,null,null,null,0]
[null,null,null,null,null,null,null,null,null,null,{"$f":"(J539*25)+(IF(J539>0,350,0))","v":0}]
[null,null,null,null,null,null,null,null,null,null,0]
[null,null,null,null,null,null,null,null,null,null,0]
[null,null,null,null,null,null,null,null,null,null,0]
[null,null,null,null,null,null,null,null,null,null,0]
[null,null,null,null,null,null,null,null,null,null,0]
[null,null,null,null,null,null,null,null,null,null,0]
[null,null,null,null,null,null,null,null,null,null,0]
[null,null,null,null,null,null,null,null,null,null,0]
[null,null,null,null,null,null,null,null,null,null,0]
[null,null,null,null,null,null,null,null,null,null,0]
[null,null,null,null,null,null,null,null,null,null,0]
[null,null,null,null,null,null,null,null,null,null,0]
[null,null,null,null,null,null,null,null,null,null,0]
[null,null,null,null,null,null,null,null,null,null,0]
[null,null,null,null,null,null,null,null,null,null,0]
[null,null,null,null,null,null,null,null,null,null,0]
[null,null,null,null,null,null,null,null,null,null,{"$f":"J556*38","v":0}]
[null,null,null,null,null,null,null,null,null,null,0]
[null,null,null,null,null,null,null,null,null,null,0]
[null,null,null,null,null,null,null,null,null,null,0]
[null,null,null,null,null,null,null,null,null,null,0]
[null,null,null,null,null,null,null,null,null,null,0]
[null,null,null,null,null,null,null,null,null,null,0]
[null,null,null,null,null,null,null,null,null,null,0]
[null,null,null,null,null,null,null,null,null,null,0]
[null,null,null,null,null,null,null,null,null,null,0]
[null,null,null,null,null,null,null,null,null,null,0]
[null,null,null,null,null,null,null,null,null,null,0]
[null,null,null,null,null,null,null,null,null,null,0]
[null,null,null,null,null,null,null,null,null,null,0]
[null,null,null,null,null,null,null,null,null,null,0]
[null,null,null,null,null,null,null,null,null,null,0]

{"sheet":"Tabelle1","index":1,"n_rows":17,"n_cols":4,"rows_kept":17,"cut":false,"hidden":false,"merged":[]}
[]
[null," aktive Lehrkraft (auch Vertretungskraft)"]
[null," Pädagogische Fachkraft"]
[null," Pensionierte Lehrkraft"]
[null," Lehramtsanwärter/in"]
[null," Lehramtsstudierende/r"]
[null," Student/in (kein Lehramt)"]
[null," Mitarbeiter/in im Ganztagsbereich"]
[null," Mitarbeiter/in an einer betreuenden Grundschule"]
[null," Dozent/in der VHS/KVHS"]
[null," Sonstiges "]
[]
[]
[]
[null,"GS",null,"Ja"]
[null,"SekI",null,"Nein"]
[null,"BBS"]